Cogmind - Beta 16 @@@ ROGUE MODE // 2025.11.20 @ 13:23:07 Player: lvl5hm Result: Destroyed by S-10 Pest with Light Assault Rifle Performance ------------- Evolutions (0) 0 Regions Visited (2) 400 Robots Destroyed (37) 185 Value Destroyed (945) 945 Prototype IDs (1) 20 Alien Tech Used (0) 0 Bonus (0) 0 TOTAL SCORE: 1550 Bonus ------- None Cogmind --------- Core Integrity 0/250 Matter 249/300 Energy 246/265 System Corruption 4% Temperature Cool (0) Movement Rolling (130) Ox2 Location -10/Subcaves Parts ------- > --- POWER (1) -------- Improved Ion Engine > --- PROPULSION (2) --- Subdweller Monowheel Subdweller Monowheel > --- UTILITY (2) ------ High-capacity Storage Unit Seismic Detector > --- WEAPON (2) ------- Beam Cannon Assault Rifle > --- INVENTORY (20) --- Subdweller Power Source Subdweller Power Source Light Treads Improved Aluminum Leg Improved Aluminum Leg Improved Aluminum Leg Improved Aluminum Leg Subdweller Monowheel Cooling System Huge Storage Unit Subdweller Optics Subdweller Optics Makeshift Light Armor Plating Subdweller Laser Subdweller Laser Subdweller Laser Light Assault Rifle Grenade Launcher Hammer Peak State ------------ > --- POWER ------------ Heavy Ion Engine > --- PROPULSION ------- Subdweller Monowheel Subdweller Monowheel > --- UTILITY ---------- Cooling System High-capacity Storage Unit > --- WEAPON ----------- Riot Gun Beam Cannon > --- INVENTORY -------- Subdweller Power Source Light Treads Improved Aluminum Leg Improved Aluminum Leg Improved Aluminum Leg Improved Aluminum Leg Subdweller Monowheel Huge Storage Unit Subdweller Optics Subdweller Optics Seismic Detector Subdweller Laser Subdweller Laser Assault Rifle Light Assault Rifle Grenade Launcher Hammer [Rating: 16] Favorites ----------- Power Heavy Ion Engine Engine Heavy Ion Engine Power Core Light Nuclear Core Propulsion Light Treads Treads Light Treads Wheel Subdweller Monowheel Utility High-capacity Storage Unit Device Seismic Detector Storage High-capacity Storage Unit Processor Transport Network Coupler Protection Light Armor Plating Weapon Assault Rifle Energy Gun Riot Gun Energy Cannon Beam Cannon Ballistic Gun Assault Rifle Launcher Grenade Launcher Impact Weapon Hammer Build | -11 -10 -10 ------- Run | Yrd Mat Sub Slots Evolved . | . . . Power . | . . . Propulsion . | . . . Utility . | . . . Weapon . | . . . Parts Attached 36 | 8 16 12 Power 7 | 1 3 3 Engine 6 | 1 2 3 Core 1 | . 1 . Reactor . | . . . Propulsion 8 | 2 2 4 Treads 5 | 2 2 1 Leg . | . . . Wheel 3 | . . 3 Hover . | . . . Flight . | . . . Utility 13 | 3 8 2 Device 7 | 2 4 1 Storage 4 | 1 3 . Processor 1 | . 1 . Hackware . | . . . Protection 1 | . . 1 Artifact . | . . . Weapon 8 | 2 3 3 Energy Gun 2 | . 1 1 Energy Cannon 1 | . 1 . Ballistic Gun 3 | 2 . 1 Ballistic Cannon . | . . . Launcher 1 | . . 1 Special Weapon . | . . . Impact Weapon 1 | . 1 . Slashing Weapon . | . . . Piercing Weapon . | . . . Special Melee Weapon . | . . . Unidentified Prototypes 1 | . 1 . Parts Lost 8 | . 3 5 Power . | . . . Propulsion 2 | . . 2 Utility 2 | . 1 1 Weapon 4 | . 2 2 Highest Loss Streak 3 | . 1 3 To Critical Strikes . | . . . Average Backups 12 | 1 8 17 Power . | . . . Propulsion 4 | . 2 6 Utility 3 | . 2 4 Weapon 4 | 1 3 5 Tool/Special . | . . . Unused Backups 17 | 1 4 12 Power 2 | . 1 1 Propulsion 5 | . . 5 Utility 5 | 1 2 2 Weapon 5 | . 1 4 Tool/Special . | . . . Average Slot Usage (%) 99 | . 99 98 Engine 13 | . 12 14 Treads 25 | . 28 24 Wheel 2 | . . 3 Device 12 | . 13 11 Storage 14 | . 14 14 Protection 1 | . . 2 Energy Cannon 9 | . 7 10 Ballistic Gun 14 | . 19 9 Impact Weapon 3 | . . 5 Peak Build Rating 16 | 7 12 16 Average Rating 10 | 6 8 12 On Entrance 5 | . 7 10 Avg Prop Armor Cover (%) 5 | . . 5 Naked Turns . | . . . Heaviest Build 58 | 13 55 58 Greatest Support 40 | 40 40 40 Greatest Overweight (x) 2 | . 1 2 Average Overweight (x) . | . . 1 Largest Inventory Capacity 20 | 8 20 20 Average Capacity 16 | 7 13 20 Most Carried 20 | 4 13 20 Average Carried 12 | 1 9 17 Final Capacity 20 | 8 20 20 Final Carried 19 | 3 12 19 Class Distribution -------------------- 96% | Mutant 3% | Scavenger-Mutant Dominant Class ---------------- Mutant | -10/Materials Mutant | -10/Subcaves Resources | -11 -10 -10 ----------- Run | Yrd Mat Sub Matter Collected 1419 | 418 491 510 Remotely . | . . . Salvage Created 1354 | 193 756 405 Parts 89 | 19 40 30 Haulers Intercepted 2 | . 2 . Recyclers Shooed 3 | 2 1 . Parts Field Recycled . | . . . Retrieved Matter . | . . . Parts Self-Destructed 6 | . . 6 Prevented 1 | . . 1 Parts Restored . | . . . Kills | -11 -10 -10 ------- Run | Yrd Mat Sub Combat Hostiles Destroyed 24 | . 13 11 Guns 13 | . 8 5 Cannons 10 | . 5 5 AOE 1 | . . 1 Classes Destroyed 9 | 2 4 3 Tunneler 6 | 6 . . Hauler 2 | . 2 . Recycler 2 | 1 1 . Watcher 3 | . 3 . Swarmer 4 | . 3 1 Grunt 10 | . 10 . Sentry 2 | . . 2 Artisan 1 | . . 1 Subdweller 8 | . . 8 Best Kill Streak 4 | 1 3 4 Combat Bots Only 4 | . 3 4 Max Kills in Single Turn 1 | 1 1 1 Gunslinging . | . . . Exploded 1 | . . 1 Melee . | . . . Uniques/NPCs Destroyed . | . . . Combat | -11 -10 -10 -------- Run | Yrd Mat Sub Hostile Shots Fired 161 | . 76 85 Missed 46 | . 16 30 Hits 115 | . 60 55 Projectile 115 | . 60 55 AOE 2 | . . 2 Critical Strikes 1 | . . 1 Damage Taken 1684 | . 738 946 Core 255 | . 87 168 Absorbed by Shields . | . . . Core Remaining (%) 100 | 100 . . Volleys Fired 134 | 23 71 40 Largest 2 | 2 2 2 Hottest 110 | 40 110 110 Shots Fired 266 | 46 141 79 Gun 209 | 46 126 37 Cannon 54 | . 15 39 Launcher 3 | . . 3 Special . | . . . Kinetic 188 | 46 119 23 Thermal 61 | . 22 39 Explosive 3 | . . 3 Electromagnetic 14 | . . 14 Robot Hit Streak 13 | 5 13 12 Robot Miss Streak 4 | 3 3 4 Penetration Max . | . . . Secondary Targets 1 | . 1 . Max Gunslinging Chain 1 | . 1 . Shots Hit Robots 167 | 22 92 53 Core Hits 59 | 8 30 21 Critical Kills . | . . . Critical Parts Destroyed . | . . . Critical Strikes 1 | . . 1 Destroy 1 | . . 1 Melee Attacks 29 | . 2 27 Impact 29 | . 2 27 Slashing . | . . . Piercing . | . . . Sneak Attacks . | . . . Combat Hostiles . | . . . Follow-up Attacks . | . . . Damage Inflicted 2560 | 267 1262 1031 Guns 1790 | 267 1119 404 Cannons 630 | . 139 491 Explosions 136 | . . 136 Melee . | . . . Ramming 4 | . 4 . Kinetic 1608 | 267 1081 260 Thermal 668 | . 177 491 Explosive 136 | . . 136 Electromagnetic 144 | . . 144 Impact . | . . . Slashing . | . . . Piercing . | . . . Highest Corruption 4 | . 4 4 Average Corruption 3 | . 3 4 Corruption Purged . | . . . Corruption Blocked . | . . . Effects 75 | . 17 58 Message Errors 24 | . 4 20 Matter Fused 19 | . 3 16 Heat Flow Errors 7 | . 3 4 Energy Discharges 7 | . 1 6 Data Loss (minor) 11 | . 4 7 Data Loss (major) 3 | . 1 2 Misfires 2 | . 1 1 Weapon Failures 2 | . . 2 Overload Shots . | . . . Overflow Damage 14 | . 8 6 Projectiles 6 | . . 6 Explosions 8 | . 8 . Melee . | . . . Knockbacks . | . . . Impact . | . . . Kinetic . | . . . Secondary . | . . . Self-Inflicted Damage 102 | . 66 36 Shots 3 | . 1 2 Rammed 1 | . 1 . Targets Rammed 1 | . 1 . Kicked . | . . . Crushed . | . . . Highest Temperature 202 | . 179 202 Average Temperature 58 | . 40 96 Received Heat Transfer 459 | . 318 141 Siege Activations . | . . . Martial Activations . | . . . Shielding Activations . | . . . Robots Disrupted . | . . . Combat Hostiles . | . . . Robots Corrupted . | . . . Combat Hostiles . | . . . Parts Fried 1 | . . 1 Impact Corruptions . | . . . Robots Melted . | . . . Combat Hostiles . | . . . Parts Melted 1 | . . 1 Heat Transferred 1443 | . 407 1036 Parts Sabotaged . | . . . Parts Stolen . | . . . Parts Stripped . | . . . Power Chain Reactions . | . . . Alert | -11 -10 -10 ------- Run | Yrd Mat Sub Maximum Alert Level . | . . . Low Security (%) 100 | 100 100 . Level 1 . | . . . Level 2 . | . . . Level 3 . | . . . Level 4 . | . . . Level 5 . | . . . High Security . | . . . Max Security . | . . . Peak Influence 122 | 5 122 . Initial . | . . . Average 15 | . 18 . Influence Increases 624 | 35 469 120 Destroy 0b10 Robot/C 320 | . 260 60 Destroy 0b10 Robot/NC 65 | 35 30 . Destroy Leader 70 | . 70 . Successful Hack 12 | . 12 . Select Force Hacks 60 | . 60 . Disable Machine 15 | . 15 . Destroy Structure 22 | . 22 . Lose Combat Pursuer 60 | . . 60 Influence Decreases 546 | 35 353 158 Entered New Map 56 | . . 56 Time Decay 460 | 35 333 92 Lost Part 30 | . 20 10 Squads Dispatched 3 | . 3 . Investigation 3 | . 3 . Extermination . | . . . Reinforcement . | . . . Assault . | . . . Garrison . | . . . Intercept . | . . . Searches Triggered . | . . . Construction Impeded . | . . . Haulers Reinforced . | . . . Active Scanning Responses . | . . . Cargo Convoy Interrupts . | . . . Stealth | -11 -10 -10 --------- Run | Yrd Mat Sub Distress Signals . | . . . Communications Jammed . | . . . Distress Signals . | . . . Times Spotted 33 | . 18 15 Peak Tracking Total 6 | . 5 6 Tactical Retreats 2 | . . 2 Traps | -11 -10 -10 ------- Run | Yrd Mat Sub Traps Triggered 3 | . 3 . Indirectly . | . . . Trap Hack Attempts . | . . . Triggered . | . . . Disarmed . | . . . Reprogrammed . | . . . Reused . | . . . Traps Extracted . | . . . Installed 1 | . . 1 Triggered . | . . . Machines | -11 -10 -10 ---------- Run | Yrd Mat Sub Machines Disabled 1 | . 1 . Max in Single Turn 1 | . 1 . Machines Repaired . | . . . Machines Dismantled . | . . . Machines Sabotaged . | . . . Overloaded Fab Kills . | . . . Hacking | -11 -10 -10 --------- Run | Yrd Mat Sub Machines Accessed 11 | . 10 1 Terminals 7 | . 7 . Fabricators . | . . . Repair Stations 1 | . 1 . Recycling Units 2 | . 2 . Scanalyzers . | . . . Garrison Access . | . . . Total Hacks 24 | . 19 5 Successful 16 | . 11 5 Failed 8 | . 8 . Catastrophic . | . . . Database Lockouts . | . . . Manual 16 | . 16 . Terminals 14 | . 14 . Fabricators . | . . . Repair Stations 3 | . 3 . Recycling Units 2 | . 2 . Scanalyzers . | . . . Garrison Access . | . . . Terminal Hacks 7 | . 2 5 Record 5 | . . 5 Part Schematic 2 | . 2 . Fabricator Hacks . | . . . Repair Station Hacks 1 | . 1 . Scan Component 1 | . 1 . Recycling Unit Hacks . | . . . Scanalyzer . | . . . Garrison Access Hacks . | . . . Unauthorized Hacks 8 | . 8 . Terminals 6 | . 6 . Botnet 1 | . 1 . Skim 5 | . 5 . Fabricators . | . . . Repair Stations . | . . . Recycling Units 2 | . 2 . Tunnel 2 | . 2 . Scanalyzers . | . . . Garrison Access . | . . . Data Cores Recovered . | . . . Used . | . . . Hacking Detections 6 | . 6 . Full Trace Events . | . . . Feedback Events . | . . . Feedback Blocked . | . . . Robot Schematics Acquired . | . . . Robots Built . | . . . Authchips . | . . . Time . | . . . Total Robot Build Rating . | . . . Part Schematics Acquired 2 | . 2 . Parts Built . | . . . Authchips . | . . . Time . | . . . Total Part Build Rating . | . . . Part Studies Acquired . | . . . Parts Repaired . | . . . Time . | . . . Parts Recycled . | . . . Recycled Matter . | . . . Retrieved Matter . | . . . Retrieved Components . | . . . Parts Scanalyzed . | . . . Part Schematics Acquired . | . . . Parts Damaged . | . . . Bothacking | -11 -10 -10 ------------ Run | Yrd Mat Sub Used RIF Installer . | . . . Robots Hacked . | . . . Non-combat . | . . . Combat . | . . . Robot Hacks Applied . | . . . Relay Couplers Released . | . . . Fabnet Peak Effective % . | . . . Robots Rewired . | . . . Allies Hacked . | . . . Hacks Repelled . | . . . Allies | -11 -10 -10 -------- Run | Yrd Mat Sub Total Allies . | . . . Largest Group . | . . . Highest-Rated Group . | . . . Highest-Rated Ally . | . . . Total Orders . | . . . Ally Attacks . | . . . Total Damage . | . . . Kills . | . . . Allies Corrupted . | . . . Allies Melted . | . . . Intel | -11 -10 -10 ------- Run | Yrd Mat Sub Active Infowar (turns) 2949 | 339 577 2033 Optics 2 | . . 2 Seismic 2946 | 339 576 2031 T.N.C. 1 | . 1 . Robot Analysis Total . | . . . Derelict Logs Recovered 3 | . . 3 Drone Launches . | . . . Drone Recoveries . | . . . Exploration | -11 -10 -10 ------------- Run | Yrd Mat Sub Turns Passed 5695 | 398 2458 2839 Spaces Moved 2487 | 202 1104 1181 Core 8 | 8 . . Treads 2240 | 194 1104 942 Legs . | . . . Wheels 239 | . . 239 Hover . | . . . Flight . | . . . Fastest Speed 50 | 50 160 120 Average Speed 197 | 155 185 216 Slowest Speed 240 | 160 240 240 Overloaded Moves . | . . . Propulsion Burnouts . | . . . Robots Hopped . | . . . Potential Cave-ins . | . . . Cave-ins Triggered . | . . . Exploration Rate (%) 58 | 9 98 67 Regions Visited 2 Branch Regions 1 Pre-discovered Areas 8 | . 4 4 Known Exits Taken 1 | . 1 . Unknown Exits Taken 1 | 1 . . Scrap Searched 3 | . . 3 Spaces Dug 3 | . 1 2 Terrain Destroyed 42 | . 18 24 Melee 3 | . 1 2 Projectile . | . . . AOE 39 | . 17 22 Terrain Rammed . | . . . Walls Destroyed . | . . . Machines Disabled . | . . . Actions | -11 -10 -10 --------- Run | Yrd Mat Sub Total 2936 | 236 1376 1324 Wait 172 | . 151 21 Move 2485 | 201 1103 1181 Hop . | . . . Pick Up 34 | 3 16 15 Fast Attach 7 | 7 . . Attach 10 | . 3 7 Detach 2 | . 1 1 Swap 42 | 1 15 26 Drop 19 | 1 13 5 Fire 134 | 23 71 40 Melee 29 | . 2 27 Ram . | . . . Kick . | . . . Crush 1 | . 1 . Escape Stasis . | . . . Rewire . | . . . Trap 1 | . . 1 Miscellaneous . | . . . Route ------- -11/Scrapyard -10/Materials (discovered 5 exits: [*Mat x3] / [*Min] / *Sub) -10/Subcaves (discovered 3 exits: *Mat x2 / Rec) History --------- Turn | Location | Event 3 | -11/Scrapyard | Discovered new exit (range 16) 399 | -11/Scrapyard | Entered Materials 400 | -10/Materials | Build established: Mutant 508 | -10/Materials | Discovered new exit (range 15) 638 | -10/Materials | Discovered new exit (range 3) 897 | -10/Materials | Discovered new exit (range 16) 1918 | -10/Materials | Discovered new exit (range 13) 2111 | -10/Materials | Learned location of Mines (-9) 2158 | -10/Materials | Learned Storage stockpile data 2193 | -10/Materials | Learned Storage terminal intel 2237 | -10/Materials | Learned location of 1 exit from Storage 2301 | -10/Materials | Identified exit to Subcaves 2301 | -10/Materials | Learned location of 1 exit from Materials 2857 | -10/Materials | Entered Subcaves 2888 | -10/Subcaves | Learned location of Storage (-8) 2893 | -10/Subcaves | Learned location of Recycling (-8) 3123 | -10/Subcaves | Ambushed by angry Subdweller bent on revenge 3669 | -10/Subcaves | Shifting Twisted Machinery released Piercing Trap 3950 | -10/Subcaves | Discovered new exit (range 5) 4688 | -10/Subcaves | A swath of the cavern ceiling suddenly collapsed 4999 | -10/Subcaves | Visited Clippyterm 5007 | -10/Subcaves | Identified exit to Materials 5007 | -10/Subcaves | Identified exit to Recycling 5007 | -10/Subcaves | Learned location of Deep Caves (-7) 5039 | -10/Subcaves | Shifting Twisted Machinery released Humpback 5187 | -10/Subcaves | Learned location of Zion (-7) 5256 | -10/Subcaves | Ambushed by Subdweller buried in earth 5256 | -10/Subcaves | Ambushed by Subdweller buried in earth 5256 | -10/Subcaves | Ambushed by Subdweller buried in earth 5257 | -10/Subcaves | Core integrity fell below 50% 5276 | -10/Subcaves | Ambushed by Subdweller buried in earth 5295 | -10/Subcaves | Core integrity fell below 20% 5311 | -10/Subcaves | Lost 3 parts (1n1u1w) 5557 | -10/Subcaves | A swath of the cavern ceiling suddenly collapsed 5659 | -10/Subcaves | Shifting Twisted Machinery released Mak. Light Armor Plating 5666 | -10/Subcaves | Shifting Twisted Machinery released Battle Cannon 5696 | -10/Subcaves | Destroyed by S-10 Pest with Light Assault Rifle Last Messages --------------- 05553_ Imp. Ion Engine self-destruct mechanism malfunctions. 05555_ Lgt. Treads fries itself beyond repair. A swath of the cavern ceiling suddenly collapses. 05560_ Acquired Lgt. Treads. 05561_ Acquired 57 matter. 05563_ Heat Sink fries itself beyond repair. 05563_ Dropped Lgt. Treads. 05568_ Dropped Sub. Power Source. 05589_ System corrupted: Heat flow error (+229). Mak. Light Armor Plating falls loose from the Twisted Machinery. Battle Cannon falls loose from the Twisted Machinery. 05666_ Acquired 10 matter. 05670_ Acquired Mak. Light Armor Plating. 05688_ Flight Unit fried. 05688_ S-10 Pest destroyed. 05691_ Riot Gun destroyed. Map ----- +----------------------------------------------------+ | ???????????????????????????????????????????????? | | ???????????????????????????????????????????????? | | ???????????????????????????????????????????????? | | ???????????????????????????????????????????????? | | ???????????????????????????????????????????????? | | ???????????????????????????????????????????????? | | ???????????????????????????????????????????????? | | ???????????????????????????????????????????????? | | ???????????????????????????????????????????????? | | ???????????????????????????????????????????????? | | ???????????????????????????????????????????????? | | ???????????????????????????????????????????????? | | ???????????????????????? ##????????????????????? | | ???????????????????????? ????????????????????? | | ???????????????????????? ????????????????????? | | ???????????????????????? ????????????????????? | | ???????????????????????? s#????????????????????? | | ???????????????????###??%&#????????????????????? | | ?????????????????### ??&& ????????????????????? | | ?????????????????# ## #????????????????????? | | ?????????????????# ##???????????????????? | | ?????????????????# "????????????????????? | | ?????????????????# % ?????????????????????? | | ?????????????????## #?????? #?????????????? | | ?????????????????# #???? #??????????????? | | ????????????????## # @#??# ##?????????????? | | ???????????????##"# %##"] #?????????????? | | ???????????????#""" " " #????????????? | | ???????????????##" s "" ?????????? | | ????????????????### s"# ## ???>?????? | | ??????????????????## # ##?? ????????? | | ???????????????????## "#????? # ????????? | | ???????????????##### ###???##? #????????????? | | ???????????????# "" #"#?##""#?? ##??????????? | | ???????????????# ##""########???????????# | | ???????????????# "## "###"" #"#???????????# ? | | ???????????????# "#"##"""#"##"#??????????## ? | | ???????????????# "###"""#"##""######????# ?? | | ???????????????# ""#?##""""###""""#"#???? ??? | | ???????????????# ##??##"""##"#""#"#????? ???? | | ???????????????####????#"### ###"#"#????? ????? | | ???????????????????????##"""#"##"#"##???? #????? | | ????????????????????????##"#"##""#" ##### #?#### | | ?????????????????????????#####?### %= #### # | | ?????????????????????????????????# * # | | ?????????????????????????????????# # | | ?????????????????????????????###?## ### | | ?????????????????????????????# #??#### # #### | | ???????????????????????????### ##????#####?## | | ???????????????????????????# ##???## #### | +----------------------------------------------------+ Best States ------------- Heat Dissipation 47 Energy Generation 15 Energy Capacity 280 Matter Stores 300 Matter Capacity 300 Sight Range 16 Terrain Scan Density 10 Armor Coverage 150 Evasion (%) 40 Recoil Reduction 2 Item Schematics ----------------- Signal Interpreter | -10/Materials | Hacked Seismic Detector | -10/Materials | Hacked Robot Schematics ------------------ None Fabricated ------------ Nothing Repaired ---------- Nothing Studied --------- None Alien Tech Used ----------------- None Achievements -------------- Do Not Disturb Challenges ------------ None Game ------ Seed MiniNetworkedHammer Manual? 0 Play Time 00:31:20 Cumulative 236.6 hours Start 2025.11.19 @ 20:23:40 End 2025.11.20 @ 13:23:07 Sessions 4 Manual Loads 0 Difficulty Rogue Special Mode None Game No. 177 Rogue 177 Adventurer 0 Explorer 0 Win Type - Total 11 Types 6/0/2/1/0/0/0/1/0/1 Lore% 60 Gallery% 72 Achievement% 65 Wizard Run 0 Options --------- Layout 2 ASCII 0 Keyboard 1 Movement Arrows Keybinds 0 Fullscreen 1 Font 32/Tamsyn Map View 50x44 Zoom Use 0% Tactical HUD 1 Map Filters NONE Filters NONE Steam 1 RUN: 167bde7c-b299-4c73-ba4c-bd227e5c7e4f